[Event "January 9 Early 2024"]
[Site "https://www.chess.com"]
[Date "2024.01.11"]
[Round "5"]
[White "Starozhilov, Leonid"]
[Black "Blahynka, Martin"]
[Result "1-0"]
[Board "254"]
[TimeControl "180+1"]
[WhiteFideId "14106752"]
[BlackFideId "334766"]
[WhiteElo "2775"]
[BlackElo "2451"]
[WhiteTeam "UKR"]
[BlackTeam "CZE"]
[WhiteClock "0:00:03"]
[BlackClock "0:00:02"]

1. e4 {[%clk 0:03:00]}  c6 {[%clk 0:02:58]} 2. Nc3 {[%clk 0:03:00]}  d5 {[%clk 0:02:58]} 3. Nf3 {[%clk 0:03:00]}  Bg4 {[%clk 0:02:58]} 4. h3 {[%clk 0:03:01]}  Bxf3 {[%clk 0:02:59]} 5. Qxf3 {[%clk 0:03:01]}  e6 {[%clk 0:03:00]} 6. g3 {[%clk 0:03:01]}  Nf6 {[%clk 0:02:53]} 7. Bg2 {[%clk 0:03:02]}  Bc5 {[%clk 0:02:54]} 8. O-O {[%clk 0:03:01]}  Nbd7 {[%clk 0:02:53]} 9. d3 {[%clk 0:03:01]}  O-O {[%clk 0:02:51]} 10. Qe2 {[%clk 0:03:01]}  Bd4 {[%clk 0:02:48]} 11. Nd1 {[%clk 0:02:59]}  dxe4 {[%clk 0:02:43]} 12. dxe4 {[%clk 0:02:58]}  a5 {[%clk 0:02:37]} 13. c3 {[%clk 0:02:53]}  Bc5 {[%clk 0:02:36]} 14. Kh2 {[%clk 0:02:53]}  a4 {[%clk 0:02:33]} 15. Ne3 {[%clk 0:02:48]}  b5 {[%clk 0:02:23]} 16. a3 {[%clk 0:02:37]}  Qb6 {[%clk 0:02:22]} 17. Ng4 {[%clk 0:02:36]}  Nxg4+ {[%clk 0:02:18]} 18. hxg4 {[%clk 0:02:34]}  Ne5 {[%clk 0:02:14]} 19. g5 {[%clk 0:02:21]}  Rad8 {[%clk 0:02:00]} 20. Bf4 {[%clk 0:02:16]}  Nc4 {[%clk 0:01:53]} 21. e5 {[%clk 0:02:10]}  Rd7 {[%clk 0:01:41]} 22. Be4 {[%clk 0:01:45]}  g6 {[%clk 0:01:26]} 23. Kg2 {[%clk 0:01:21]}  Rfd8 {[%clk 0:01:24]} 24. Qg4 {[%clk 0:01:21]}  Nd2 {[%clk 0:00:53]} 25. Rfe1 {[%clk 0:00:57]}  Nxe4 {[%clk 0:00:45]} 26. Rxe4 {[%clk 0:00:57]}  Bxf2 {[%clk 0:00:31]} 27. Rh1 {[%clk 0:00:57]}  Bc5 {[%clk 0:00:19]} 28. Qh4 {[%clk 0:00:34]}  f5 {[%clk 0:00:19]} 29. gxf6 {[%clk 0:00:29]}  Rf7 {[%clk 0:00:16]} 30. Qg4 {[%clk 0:00:24]}  Rd3 {[%clk 0:00:11]} 31. Qxe6 {[%clk 0:00:23]}  Qd8 {[%clk 0:00:07]} 32. Rxh7 {[%clk 0:00:20]}  Qd7 {[%clk 0:00:03]} 33. Qxf7+ {[%clk 0:00:16]}  Qxf7 {[%clk 0:00:03]} 34. Rxf7 {[%clk 0:00:17]}  Kxf7 {[%clk 0:00:04]} 35. e6+ {[%clk 0:00:06]}  Kxf6 {[%clk 0:00:04]} 36. Kf1 {[%clk 0:00:06]}  Be7 {[%clk 0:00:03]} 37. Ke2 {[%clk 0:00:04]}  Rd8 {[%clk 0:00:03]} 38. Be3 {[%clk 0:00:04]}  Rh8 {[%clk 0:00:02]} 39. Bd4+ {[%clk 0:00:04]}  Kf5 {[%clk 0:00:01]} 40. Bxh8 {[%clk 0:00:05]}  Kxe4 {[%clk 0:00:01]} 41. Bd4 {[%clk 0:00:03]}  Kd5 {[%clk 0:00:01]} 42. Kd3 {[%clk 0:00:03]}  Kxe6 {[%clk 0:00:02]} 43. Ke4 {[%clk 0:00:03]}  Bd6 {[%clk 0:00:02]} 44. g4 {[%clk 0:00:03]}  Bg3 {[%clk 0:00:02]} 45. Be3 {[%clk 0:00:04]}  Bh4 {[%clk 0:00:02]} 46. Kd4 {[%clk 0:00:03]}  Be7 {[%clk 0:00:03]} 47. c4 {[%clk 0:00:03]}  c5+ {[%clk 0:00:02]} 48. Kd3 {[%clk 0:00:03]}  b4 {[%clk 0:00:02]} 49. Ke4 {[%clk 0:00:02]}  Bf8 {[%clk 0:00:02]} 50. Bf2 {[%clk 0:00:02]}  Bg7 {[%clk 0:00:01]} 51. Bxc5 {[%clk 0:00:02]}  b3 {[%clk 0:00:01]} 52. Bd4 {[%clk 0:00:02]}  Bf8 {[%clk 0:00:01]} 53. Kd3 {[%clk 0:00:02]}  Be7 {[%clk 0:00:01]} 54. Ke4 {[%clk 0:00:02]}  Bf8 {[%clk 0:00:01]} 55. c5 {[%clk 0:00:03]}  Be7 {[%clk 0:00:01]} 56. Be3 {[%clk 0:00:02]}  Bd8 {[%clk 0:00:01]} 57. Bd4 {[%clk 0:00:02]}  Kd7 {[%clk 0:00:02]} 58. Kd5 {[%clk 0:00:02]}  Bc7 {[%clk 0:00:02]} 59. c6+ {[%clk 0:00:03]}  Kc8 {[%clk 0:00:02]} 60. Kc4 {[%clk 0:00:03]} 1-0

[Event "January 9 Early 2024"]
[Site "https://www.chess.com"]
[Date "2024.01.11"]
[Round "5"]
[White "Livaic, Leon"]
[Black "Sarana, Alexey"]
[Result "1/2-1/2"]
[Board "257"]
[TimeControl "180+1"]
[WhiteFideId "14531534"]
[BlackFideId "24133795"]
[WhiteElo "2928"]
[BlackElo "3067"]
[WhiteTeam "CRO"]
[BlackTeam "SRB"]
[WhiteClock "0:00:08"]
[BlackClock "0:00:14"]

1. d4 {[%clk 0:03:00]}  Nf6 {[%clk 0:02:56]} 2. c4 {[%clk 0:03:01]}  e6 {[%clk 0:02:55]} 3. Nf3 {[%clk 0:02:58]}  d5 {[%clk 0:02:56]} 4. Nc3 {[%clk 0:02:58]}  Nbd7 {[%clk 0:02:55]} 5. cxd5 {[%clk 0:02:57]}  exd5 {[%clk 0:02:56]} 6. Bg5 {[%clk 0:02:56]}  c6 {[%clk 0:02:56]} 7. e3 {[%clk 0:02:56]}  h6 {[%clk 0:02:56]} 8. Bh4 {[%clk 0:02:56]}  g5 {[%clk 0:02:56]} 9. Bg3 {[%clk 0:02:56]}  Nh5 {[%clk 0:02:54]} 10. Be5 {[%clk 0:02:56]}  Nxe5 {[%clk 0:02:53]} 11. Nxe5 {[%clk 0:02:50]}  Nf6 {[%clk 0:02:54]} 12. h4 {[%clk 0:02:41]}  g4 {[%clk 0:02:52]} 13. g3 {[%clk 0:02:37]}  Bd6 {[%clk 0:02:51]} 14. Nd3 {[%clk 0:02:34]}  Bf5 {[%clk 0:02:48]} 15. Bg2 {[%clk 0:02:32]}  Qe7 {[%clk 0:02:43]} 16. O-O {[%clk 0:02:25]}  O-O {[%clk 0:02:39]} 17. a3 {[%clk 0:02:06]}  a5 {[%clk 0:02:36]} 18. Re1 {[%clk 0:02:00]}  Rfe8 {[%clk 0:02:35]} 19. Ne2 {[%clk 0:01:53]}  Be4 {[%clk 0:02:26]} 20. Bxe4 {[%clk 0:01:48]}  Qxe4 {[%clk 0:02:27]} 21. Nc3 {[%clk 0:01:45]}  Qf5 {[%clk 0:02:26]} 22. Qc2 {[%clk 0:01:31]}  Re7 {[%clk 0:02:21]} 23. Rac1 {[%clk 0:01:28]}  Rae8 {[%clk 0:02:16]} 24. Ne2 {[%clk 0:01:19]}  Qf3 {[%clk 0:02:02]} 25. Nef4 {[%clk 0:01:06]}  Ne4 {[%clk 0:01:59]} 26. Qe2 {[%clk 0:01:00]}  Qxe2 {[%clk 0:01:42]} 27. Rxe2 {[%clk 0:01:01]}  a4 {[%clk 0:01:37]} 28. Kh2 {[%clk 0:00:54]}  Kg7 {[%clk 0:01:35]} 29. Kg2 {[%clk 0:00:55]}  f5 {[%clk 0:01:35]} 30. Rec2 {[%clk 0:00:54]}  Kf6 {[%clk 0:01:34]} 31. Ne2 {[%clk 0:00:53]}  Ra8 {[%clk 0:01:18]} 32. Rb1 {[%clk 0:00:49]}  Ra5 {[%clk 0:01:14]} 33. Nc3 {[%clk 0:00:45]}  Re8 {[%clk 0:00:57]} 34. Rbc1 {[%clk 0:00:44]}  Ra6 {[%clk 0:00:50]} 35. Na2 {[%clk 0:00:43]}  Rb6 {[%clk 0:00:46]} 36. Nab4 {[%clk 0:00:43]}  Rb5 {[%clk 0:00:38]} 37. Rd1 {[%clk 0:00:41]}  Re7 {[%clk 0:00:37]} 38. Rdc1 {[%clk 0:00:42]}  Re8 {[%clk 0:00:37]} 39. Rd1 {[%clk 0:00:42]}  Rd8 {[%clk 0:00:34]} 40. Rdc1 {[%clk 0:00:42]}  Bf8 {[%clk 0:00:33]} 41. Rd1 {[%clk 0:00:41]}  Re8 {[%clk 0:00:33]} 42. Rdc1 {[%clk 0:00:41]}  Ra8 {[%clk 0:00:31]} 43. Rd1 {[%clk 0:00:39]}  Rb6 {[%clk 0:00:25]} 44. Rdc1 {[%clk 0:00:38]}  Bd6 {[%clk 0:00:25]} 45. Rd1 {[%clk 0:00:34]}  Ke7 {[%clk 0:00:25]} 46. Rdc1 {[%clk 0:00:33]}  Kd7 {[%clk 0:00:25]} 47. Rd1 {[%clk 0:00:33]}  Rb5 {[%clk 0:00:25]} 48. Rdc1 {[%clk 0:00:34]}  Re8 {[%clk 0:00:25]} 49. Rd1 {[%clk 0:00:33]}  Nf6 {[%clk 0:00:22]} 50. Rdc1 {[%clk 0:00:32]}  Re6 {[%clk 0:00:20]} 51. Nc5+ {[%clk 0:00:29]}  Bxc5 {[%clk 0:00:21]} 52. Rxc5 {[%clk 0:00:30]}  Rxc5 {[%clk 0:00:20]} 53. Rxc5 {[%clk 0:00:30]}  b5 {[%clk 0:00:20]} 54. Nd3 {[%clk 0:00:28]}  Ne4 {[%clk 0:00:20]} 55. Rc2 {[%clk 0:00:28]}  Kc7 {[%clk 0:00:19]} 56. Kf1 {[%clk 0:00:10]}  Kb6 {[%clk 0:00:19]} 57. Nc5 {[%clk 0:00:07]}  Re7 {[%clk 0:00:17]} 58. Nd3 {[%clk 0:00:03]}  Nd6 {[%clk 0:00:16]} 59. Ke2 {[%clk 0:00:04]}  Nc4 {[%clk 0:00:17]} 60. Nc5 {[%clk 0:00:04]}  Kc7 {[%clk 0:00:14]} 61. Nd3 {[%clk 0:00:04]}  Kd6 {[%clk 0:00:14]} 62. Nb4 {[%clk 0:00:05]}  Re8 {[%clk 0:00:13]} 63. Nd3 {[%clk 0:00:05]}  Re7 {[%clk 0:00:13]} 64. Rc1 {[%clk 0:00:06]}  Rb7 {[%clk 0:00:13]} 65. Rc2 {[%clk 0:00:06]}  Rb8 {[%clk 0:00:13]} 66. Rc1 {[%clk 0:00:07]}  Re8 {[%clk 0:00:14]} 67. Rc2 {[%clk 0:00:08]}  Re7 {[%clk 0:00:14]} 1/2-1/2

[Event "January 9 Early 2024"]
[Site "https://www.chess.com"]
[Date "2024.01.11"]
[Round "5"]
[White "Rozman, Levy"]
[Black "Mrithyunjay Mahadevan"]
[Result "1-0"]
[Board "258"]
[TimeControl "180+1"]
[WhiteFideId "2039877"]
[BlackFideId "45003521"]
[WhiteElo "2662"]
[BlackElo "2451"]
[WhiteTeam "USA"]
[BlackTeam "IND"]
[WhiteClock "0:00:02"]
[BlackClock "0:00:05"]

1. e4 {[%clk 0:03:00]}  c5 {[%clk 0:02:53]} 2. Nc3 {[%clk 0:02:59]}  Nc6 {[%clk 0:02:51]} 3. Bb5 {[%clk 0:02:59]}  Nd4 {[%clk 0:02:51]} 4. Nf3 {[%clk 0:02:59]}  g6 {[%clk 0:02:49]} 5. Bc4 {[%clk 0:02:58]}  Bg7 {[%clk 0:02:48]} 6. Nxd4 {[%clk 0:02:58]}  cxd4 {[%clk 0:02:48]} 7. Qf3 {[%clk 0:02:59]}  e6 {[%clk 0:02:32]} 8. Nb5 {[%clk 0:02:58]}  Be5 {[%clk 0:02:19]} 9. c3 {[%clk 0:02:45]}  dxc3 {[%clk 0:02:14]} 10. d4 {[%clk 0:02:41]}  cxb2 {[%clk 0:02:02]} 11. dxe5 {[%clk 0:02:28]}  Qa5+ {[%clk 0:01:54]} 12. Ke2 {[%clk 0:02:10]}  Qxb5 {[%clk 0:01:51]} 13. Bxb5 {[%clk 0:01:54]}  bxa1=Q {[%clk 0:01:49]} 14. Rd1 {[%clk 0:01:43]}  Qxe5 {[%clk 0:01:41]} 15. Qb3 {[%clk 0:01:42]}  Qxe4+ {[%clk 0:01:29]} 16. Kf1 {[%clk 0:01:42]}  Ne7 {[%clk 0:01:29]} 17. Bb2 {[%clk 0:01:39]}  O-O {[%clk 0:01:08]} 18. Re1 {[%clk 0:01:37]}  Qd5 {[%clk 0:01:07]} 19. Bc4 {[%clk 0:01:36]}  Qc6 {[%clk 0:01:05]} 20. Bf6 {[%clk 0:01:17]}  Nf5 {[%clk 0:00:45]} 21. Kg1 {[%clk 0:01:03]}  a6 {[%clk 0:00:29]} 22. Bd3 {[%clk 0:01:01]}  d6 {[%clk 0:00:27]} 23. Bxf5 {[%clk 0:00:52]}  exf5 {[%clk 0:00:26]} 24. Qe3 {[%clk 0:00:51]}  d5 {[%clk 0:00:25]} 25. Qg5 {[%clk 0:00:46]}  h6 {[%clk 0:00:18]} 26. Qh4 {[%clk 0:00:41]}  Bd7 {[%clk 0:00:12]} 27. h3 {[%clk 0:00:32]}  Rae8 {[%clk 0:00:11]} 28. Rb1 {[%clk 0:00:31]}  Re6 {[%clk 0:00:10]} 29. Ba1 {[%clk 0:00:19]}  Qc2 {[%clk 0:00:10]} 30. Rf1 {[%clk 0:00:17]}  g5 {[%clk 0:00:10]} 31. Qd4 {[%clk 0:00:16]}  f6 {[%clk 0:00:09]} 32. Qxd5 {[%clk 0:00:17]}  Rf7 {[%clk 0:00:10]} 33. Qxb7 {[%clk 0:00:16]}  Bc6 {[%clk 0:00:10]} 34. Qc8+ {[%clk 0:00:15]}  Re8 {[%clk 0:00:10]} 35. Qxa6 {[%clk 0:00:09]}  Qe4 {[%clk 0:00:08]} 36. f3 {[%clk 0:00:08]}  Qe3+ {[%clk 0:00:09]} 37. Rf2 {[%clk 0:00:04]}  Re6 {[%clk 0:00:08]} 38. Qc8+ {[%clk 0:00:03]}  Kg7 {[%clk 0:00:08]} 39. Qb8 {[%clk 0:00:02]}  Qe1+ {[%clk 0:00:08]} 40. Rf1 {[%clk 0:00:02]}  Qe3+ {[%clk 0:00:08]} 41. Kh1 {[%clk 0:00:03]}  Rb7 {[%clk 0:00:09]} 42. Qc8 {[%clk 0:00:03]}  Rb5 {[%clk 0:00:07]} 43. Qc7+ {[%clk 0:00:03]}  Kg6 {[%clk 0:00:07]} 44. Qd8 {[%clk 0:00:04]}  Rbe5 {[%clk 0:00:08]} 45. Qg8+ {[%clk 0:00:04]}  Kh5 {[%clk 0:00:08]} 46. Bxe5 {[%clk 0:00:04]}  Qxe5 {[%clk 0:00:08]} 47. Qf7+ {[%clk 0:00:05]}  Kh4 {[%clk 0:00:08]} 48. Qg6 {[%clk 0:00:04]}  h5 {[%clk 0:00:08]} 49. Qf7 {[%clk 0:00:02]}  Bb5 {[%clk 0:00:07]} 50. Rg1 {[%clk 0:00:02]}  Bc4 {[%clk 0:00:07]} 51. Qa7 {[%clk 0:00:03]}  Qg3 {[%clk 0:00:07]} 52. Qc5 {[%clk 0:00:03]}  Bxa2 {[%clk 0:00:06]} 53. Qd4+ {[%clk 0:00:03]}  f4 {[%clk 0:00:07]} 54. Qd2 {[%clk 0:00:03]}  Bd5 {[%clk 0:00:06]} 55. Qxd5 {[%clk 0:00:03]}  Re1 {[%clk 0:00:06]} 56. Qd2 {[%clk 0:00:01]}  Rxg1+ {[%clk 0:00:06]} 57. Kxg1 {[%clk 0:00:02]}  f5 {[%clk 0:00:06]} 58. Qe2 {[%clk 0:00:02]}  g4 {[%clk 0:00:05]} 59. Qe7# {[%clk 0:00:02]} 1-0

[Event "January 9 Early 2024"]
[Site "https://www.chess.com"]
[Date "2024.01.11"]
[Round "5"]
[White "Bashirli, Saadat"]
[Black "Franchini, Gabriele"]
[Result "1-0"]
[Board "260"]
[TimeControl "180+1"]
[WhiteFideId "13429990"]
[BlackFideId "806790"]
[WhiteElo "2413"]
[BlackElo "2230"]
[WhiteTeam "AZE"]
[BlackTeam "ITA"]
[WhiteClock "0:00:21"]
[BlackClock "0:00:11"]

1. e4 {[%clk 0:03:00]}  e6 {[%clk 0:03:00]} 2. d4 {[%clk 0:03:00]}  d5 {[%clk 0:03:00]} 3. Nc3 {[%clk 0:03:00]}  Nf6 {[%clk 0:03:00]} 4. Bg5 {[%clk 0:02:59]}  Be7 {[%clk 0:02:59]} 5. e5 {[%clk 0:02:58]}  Nfd7 {[%clk 0:03:00]} 6. Bxe7 {[%clk 0:02:59]}  Qxe7 {[%clk 0:03:01]} 7. Nb5 {[%clk 0:03:00]}  Nb6 {[%clk 0:03:00]} 8. c3 {[%clk 0:02:59]}  a6 {[%clk 0:02:56]} 9. Na3 {[%clk 0:02:59]}  c5 {[%clk 0:02:55]} 10. Nc2 {[%clk 0:02:57]}  Nc6 {[%clk 0:02:55]} 11. Bd3 {[%clk 0:02:56]}  Bd7 {[%clk 0:02:50]} 12. Nf3 {[%clk 0:02:51]}  h6 {[%clk 0:02:48]} 13. O-O {[%clk 0:02:51]}  c4 {[%clk 0:02:45]} 14. Be2 {[%clk 0:02:51]}  g5 {[%clk 0:02:45]} 15. b3 {[%clk 0:02:48]}  Na5 {[%clk 0:02:43]} 16. bxc4 {[%clk 0:02:43]}  Naxc4 {[%clk 0:02:41]} 17. Rb1 {[%clk 0:02:42]}  Ba4 {[%clk 0:02:28]} 18. Qc1 {[%clk 0:02:34]}  Bxc2 {[%clk 0:02:24]} 19. Qxc2 {[%clk 0:02:06]}  Na3 {[%clk 0:02:24]} 20. Qb3 {[%clk 0:02:06]}  Nxb1 {[%clk 0:02:17]} 21. Rxb1 {[%clk 0:02:06]}  Nc4 {[%clk 0:02:04]} 22. Bxc4 {[%clk 0:02:00]}  dxc4 {[%clk 0:02:05]} 23. Qxc4 {[%clk 0:02:00]}  O-O {[%clk 0:01:59]} 24. Nd2 {[%clk 0:01:58]}  b5 {[%clk 0:01:58]} 25. Qd3 {[%clk 0:01:57]}  Rac8 {[%clk 0:01:55]} 26. Ne4 {[%clk 0:01:56]}  f5 {[%clk 0:01:24]} 27. exf6 {[%clk 0:01:46]}  Qh7 {[%clk 0:01:16]} 28. Re1 {[%clk 0:01:36]}  Kh8 {[%clk 0:01:06]} 29. Qh3 {[%clk 0:01:32]}  b4 {[%clk 0:00:57]} 30. Nd6 {[%clk 0:01:01]}  Rxc3 {[%clk 0:00:53]} 31. Qxe6 {[%clk 0:00:59]}  Rc2 {[%clk 0:00:44]} 32. f7 {[%clk 0:00:53]}  Rc6 {[%clk 0:00:39]} 33. Qe8 {[%clk 0:00:47]}  Rc8 {[%clk 0:00:11]} 34. Nxc8 {[%clk 0:00:45]}  Qxf7 {[%clk 0:00:12]} 35. Qxf7 {[%clk 0:00:44]}  Rxf7 {[%clk 0:00:13]} 36. Nd6 {[%clk 0:00:43]}  Rc7 {[%clk 0:00:11]} 37. g3 {[%clk 0:00:23]}  Rc2 {[%clk 0:00:12]} 38. Rb1 {[%clk 0:00:21]}  a5 {[%clk 0:00:12]} 39. Nb7 {[%clk 0:00:18]}  Rxa2 {[%clk 0:00:12]} 40. d5 {[%clk 0:00:18]}  Kg7 {[%clk 0:00:07]} 41. d6 {[%clk 0:00:18]}  Rd2 {[%clk 0:00:07]} 42. Nxa5 {[%clk 0:00:17]}  Rxd6 {[%clk 0:00:08]} 43. Rxb4 {[%clk 0:00:17]}  Rd1+ {[%clk 0:00:07]} 44. Kg2 {[%clk 0:00:18]}  Rd6 {[%clk 0:00:08]} 45. Rb7+ {[%clk 0:00:17]}  Kg6 {[%clk 0:00:08]} 46. Rc7 {[%clk 0:00:18]}  Rd5 {[%clk 0:00:07]} 47. Rc6+ {[%clk 0:00:18]}  Kg7 {[%clk 0:00:07]} 48. Nc4 {[%clk 0:00:18]}  Rd4 {[%clk 0:00:07]} 49. Ne3 {[%clk 0:00:18]}  Rd2 {[%clk 0:00:07]} 50. Nf5+ {[%clk 0:00:18]}  Kg8 {[%clk 0:00:07]} 51. Nxh6+ {[%clk 0:00:19]}  Kh7 {[%clk 0:00:07]} 52. Nf5 {[%clk 0:00:19]}  g4 {[%clk 0:00:08]} 53. Rh6+ {[%clk 0:00:17]}  Kg8 {[%clk 0:00:07]} 54. Rg6+ {[%clk 0:00:18]}  Kf8 {[%clk 0:00:07]} 55. Rxg4 {[%clk 0:00:19]}  Rd5 {[%clk 0:00:05]} 56. Rf4 {[%clk 0:00:20]}  Ke8 {[%clk 0:00:05]} 57. Ne3 {[%clk 0:00:20]}  Ra5 {[%clk 0:00:04]} 58. h4 {[%clk 0:00:21]}  Ra7 {[%clk 0:00:05]} 59. h5 {[%clk 0:00:21]}  Rh7 {[%clk 0:00:06]} 60. g4 {[%clk 0:00:20]}  Rh6 {[%clk 0:00:07]} 61. Rf5 {[%clk 0:00:20]}  Rh8 {[%clk 0:00:07]} 62. Kg3 {[%clk 0:00:18]}  Rg8 {[%clk 0:00:08]} 63. Kh4 {[%clk 0:00:19]}  Rh8 {[%clk 0:00:09]} 64. g5 {[%clk 0:00:20]}  Rg8 {[%clk 0:00:10]} 65. h6 {[%clk 0:00:20]}  Rh8 {[%clk 0:00:11]} 66. Kh5 {[%clk 0:00:20]}  Ke7 {[%clk 0:00:11]} 67. g6 {[%clk 0:00:21]}  Ke8 {[%clk 0:00:11]} 68. g7 {[%clk 0:00:21]}  Rg8 {[%clk 0:00:11]} 69. h7 {[%clk 0:00:21]} 1-0

[Event "January 9 Early 2024"]
[Site "https://www.chess.com"]
[Date "2024.01.11"]
[Round "5"]
[White "Klekowski, Maciej"]
[Black "Djokic, Mihailo"]
[Result "1/2-1/2"]
[Board "262"]
[TimeControl "180+1"]
[WhiteFideId "1132717"]
[BlackFideId "976440"]
[WhiteElo "2858"]
[BlackElo "2667"]
[WhiteTeam "POL"]
[BlackTeam "SRB"]
[WhiteClock "0:00:03"]
[BlackClock "0:00:02"]

1. c4 {[%clk 0:03:00]}  e5 {[%clk 0:02:59]} 2. Nc3 {[%clk 0:03:00]}  Nc6 {[%clk 0:02:59]} 3. g3 {[%clk 0:03:01]}  Bc5 {[%clk 0:03:00]} 4. Bg2 {[%clk 0:03:01]}  d6 {[%clk 0:03:00]} 5. e3 {[%clk 0:03:02]}  Bf5 {[%clk 0:03:00]} 6. d3 {[%clk 0:02:59]}  h5 {[%clk 0:03:00]} 7. h3 {[%clk 0:02:59]}  a6 {[%clk 0:02:58]} 8. Nge2 {[%clk 0:02:59]}  Ba7 {[%clk 0:02:58]} 9. O-O {[%clk 0:02:53]}  Qd7 {[%clk 0:02:58]} 10. Kh2 {[%clk 0:02:52]}  Nge7 {[%clk 0:02:50]} 11. e4 {[%clk 0:02:46]}  Be6 {[%clk 0:02:45]} 12. f4 {[%clk 0:02:46]}  f5 {[%clk 0:02:43]} 13. Nd5 {[%clk 0:02:42]}  O-O {[%clk 0:02:36]} 14. Nec3 {[%clk 0:02:28]}  g6 {[%clk 0:02:28]} 15. fxe5 {[%clk 0:02:24]}  dxe5 {[%clk 0:02:23]} 16. Bg5 {[%clk 0:02:19]}  Kg7 {[%clk 0:02:16]} 17. Qd2 {[%clk 0:02:18]}  Ng8 {[%clk 0:02:14]} 18. exf5 {[%clk 0:02:14]}  Rxf5 {[%clk 0:02:00]} 19. Rxf5 {[%clk 0:02:05]}  Bxf5 {[%clk 0:01:58]} 20. Ne4 {[%clk 0:02:03]}  Rf8 {[%clk 0:01:55]} 21. Rf1 {[%clk 0:01:33]}  Nd4 {[%clk 0:01:32]} 22. Nef6 {[%clk 0:01:16]}  Rxf6 {[%clk 0:01:05]} 23. Nxf6 {[%clk 0:01:15]}  Nxf6 {[%clk 0:01:04]} 24. Bxf6+ {[%clk 0:01:15]}  Kxf6 {[%clk 0:01:05]} 25. g4 {[%clk 0:01:16]}  hxg4 {[%clk 0:01:02]} 26. hxg4 {[%clk 0:01:16]}  Qh7+ {[%clk 0:00:46]} 27. Bh3 {[%clk 0:01:01]}  Ne6 {[%clk 0:00:47]} 28. gxf5 {[%clk 0:01:00]}  Nf4 {[%clk 0:00:45]} 29. Rxf4 {[%clk 0:00:34]}  exf4 {[%clk 0:00:41]} 30. Qxf4 {[%clk 0:00:33]}  g5 {[%clk 0:00:28]} 31. Qe4 {[%clk 0:00:25]}  Qe7 {[%clk 0:00:23]} 32. Qxe7+ {[%clk 0:00:20]}  Kxe7 {[%clk 0:00:23]} 33. Kg3 {[%clk 0:00:16]}  Bd4 {[%clk 0:00:24]} 34. b3 {[%clk 0:00:14]}  c5 {[%clk 0:00:21]} 35. Kf3 {[%clk 0:00:15]}  Bf6 {[%clk 0:00:20]} 36. Ke4 {[%clk 0:00:15]}  Kd6 {[%clk 0:00:20]} 37. Bg4 {[%clk 0:00:13]}  b6 {[%clk 0:00:21]} 38. Bh5 {[%clk 0:00:13]}  a5 {[%clk 0:00:21]} 39. Bf7 {[%clk 0:00:14]}  Bd4 {[%clk 0:00:20]} 40. Bd5 {[%clk 0:00:14]}  Be5 {[%clk 0:00:19]} 41. Kf3 {[%clk 0:00:15]}  Bf6 {[%clk 0:00:18]} 42. Kg4 {[%clk 0:00:15]}  Ke5 {[%clk 0:00:19]} 43. Be4 {[%clk 0:00:15]}  Kd4 {[%clk 0:00:20]} 44. Kh5 {[%clk 0:00:15]}  Kc3 {[%clk 0:00:07]} 45. Kg6 {[%clk 0:00:15]}  Bd8 {[%clk 0:00:06]} 46. f6 {[%clk 0:00:14]}  Kb2 {[%clk 0:00:04]} 47. Kxg5 {[%clk 0:00:12]}  Kxa2 {[%clk 0:00:04]} 48. Kf5 {[%clk 0:00:09]}  Bxf6 {[%clk 0:00:02]} 49. Kxf6 {[%clk 0:00:10]}  Kxb3 {[%clk 0:00:03]} 50. Bc6 {[%clk 0:00:04]}  a4 {[%clk 0:00:03]} 51. Bxa4+ {[%clk 0:00:04]}  Kxa4 {[%clk 0:00:04]} 52. Ke5 {[%clk 0:00:05]}  Kb4 {[%clk 0:00:04]} 53. Ke4 {[%clk 0:00:03]}  Kc3 {[%clk 0:00:04]} 54. Ke3 {[%clk 0:00:03]}  Kc2 {[%clk 0:00:04]} 55. Ke2 {[%clk 0:00:03]}  Kc3 {[%clk 0:00:03]} 56. Ke3 {[%clk 0:00:03]}  Kb3 {[%clk 0:00:03]} 57. Kd2 {[%clk 0:00:02]}  Kb2 {[%clk 0:00:03]} 58. Kd1 {[%clk 0:00:01]}  Kc3 {[%clk 0:00:02]} 59. Ke2 {[%clk 0:00:02]}  Kc2 {[%clk 0:00:02]} 60. Ke3 {[%clk 0:00:02]}  Kc3 {[%clk 0:00:02]} 61. Ke2 {[%clk 0:00:03]}  Kb4 {[%clk 0:00:02]} 62. Kd2 {[%clk 0:00:03]}  Kb3 {[%clk 0:00:03]} 63. Kd1 {[%clk 0:00:02]}  Kc3 {[%clk 0:00:02]} 64. Ke2 {[%clk 0:00:03]} 1/2-1/2